bitfinex-derivatives/quotes_ETHF0:USTF0_20210702
["timestamp","ask_amount","ask_price","bid_price","bid_amount"]
[1625192888460,2.20527,2092.7,2092.6,2.20527]
[1625192889870,2.20527,2092.7,2092.1,2.20527]
[1625192890474,2.20527,2092.3,2092.1,4.41054]
[1625192890574,5.67937,2092.3,2092.1,4.41054]
[1625192891077,55.29717,2092.3,2092.1,4.41054]
[1625192891228,5.67937,2092.3,2092.1,4.41054]
[1625192892078,57.58707,2092.3,2092.1,4.41054]
[1625192892628,5.67937,2092.3,2092.1,4.41054]
[1625192896459,2.20527,2092.3,2092.1,4.41054]
[1625192898763,51.30137,2092.3,2092.1,4.41054]
[1625192899415,2.20527,2092.3,2092.1,4.41054]
[1625192900318,58.107,2092.2,2092.1,4.41054]
[1625192900417,2.20527,2092.3,2092.1,4.41054]
[1625192901017,53.3136,2092.2,2092.1,4.41054]
[1625192901469,2.20527,2092.3,2092.1,4.41054]
[1625192902172,43.47207,2092.3,2092.1,4.41054]
[1625192902322,2.20527,2092.3,2092.1,4.41054]
[1625192902525,2.20527,2092.7,2092.1,4.41054]
[1625192902725,2.966539,2093.2,2092.1,4.41054]
[1625192902726,1.0,2093.2,2092.1,4.41054]
[1625192902875,31.92494253,2093.3,2092.1,4.41054]
[1625192903226,31.92494253,2093.3,2092.5,60.1056]
[1625192903326,31.92494253,2093.3,2092.5,62.4948]
[1625192904477,31.92494253,2093.3,2092.5,2.3892]
[1625192904578,2.20527,2093.1,2093.0,2.20527]
[1625192905527,47.21407,2093.1,2093.0,2.20527]
[1625192905978,2.20527,2093.1,2093.0,2.20527]
[1625192906579,4.41054,2093.1,2093.0,2.20527]
[1625192909436,4.41054,2093.1,2092.8,2.20527]
[1625192915923,47.1116,2092.9,2092.8,2.20527]
[1625192916326,4.41054,2093.1,2092.8,2.20527]
[1625192918838,58.0007,2092.9,2092.8,2.20527]
[1625192919233,7.69714,2093.1,2092.8,2.20527]
[1625192920888,9.10353023,2093.1,2092.8,2.20527]
[1625192923745,49.3423,2092.9,2092.8,2.20527]
[1625192923947,9.10353023,2093.1,2092.8,2.20527]
[1625192924047,5.81693023,2093.1,2092.8,2.20527]
[1625192924747,50.4697,2092.9,2092.8,2.20527]
[1625192925157,3.1888,2093.0,2092.8,2.20527]
[1625192925709,56.2004,2092.9,2092.8,2.20527]
[1625192926370,3.1888,2093.0,2092.8,2.20527]
[1625192926476,7.78713381,2093.1,2092.8,2.20527]
[1625192926825,5.81693023,2093.1,2092.8,2.20527]
[1625192926921,41.9544,2093.0,2092.8,2.20527]
[1625192931338,7.78770628,2093.1,2092.8,2.20527]
[1625192931738,10.60381331,2093.1,2092.8,2.20527]
[1625192931838,46.3741,2092.9,2092.8,2.20527]
[1625192931992,10.60381331,2093.1,2092.8,2.20527]
[1625192932088,8.39854331,2093.1,2092.8,5.55197]
[1625192932188,6.19327331,2093.1,2092.8,5.55197]
[1625192932589,6.19327331,2093.1,2093.0,55.1581]
[1625192932742,6.19327331,2093.1,2093.0,57.36337]
[1625192932940,6.19545677,2093.4,2093.0,57.36337]
[1625192933392,5.86622173,2093.6,2093.0,57.36337]
[1625192933393,2.20527,2093.6,2093.0,57.36337]
[1625192933539,2.20527,2093.6,2093.1,17.3]
[1625192933641,2.20527,2093.6,2093.1,17.44126487]
[1625192934041,2.20527,2093.6,2093.2,0.1412578]
[1625192934605,2.20527,2093.8,2093.2,0.1412578]
[1625192934693,3.37784028,2094.0,2093.2,0.1412578]
[1625192934796,3.37784028,2094.0,2093.7,4.41054]
[1625192934944,3.37765596,2094.1,2093.7,6.83734]
[1625192935195,3.37765596,2094.1,2094.0,49.5931]
[1625192935496,3.37759003,2094.2,2094.0,49.5931]
[1625192935846,1.40732918,2094.2,2094.0,49.5931]
[1625192936798,1.40732918,2094.2,2094.1,2.20527]
[1625192938953,1.40732918,2094.2,2094.1,57.44967]
[1625192939669,3.453e-05,2094.3,2094.1,57.44967]
[1625192939768,2.81221722,2094.5,2094.1,57.44967]
[1625192940172,1.40551562,2094.3,2094.1,57.44967]
[1625192940372,1.40551562,2094.3,2094.2,17.4]
[1625192940471,4.49952692,2094.9,2094.2,20.0597]
[1625192940472,2.81051719,2094.9,2094.2,20.0597]
[1625192940572,2.81051719,2094.9,2094.2,2.6597]
[1625192940823,2.81051719,2094.9,2094.8,4.41054]
[1625192941124,2.81051719,2094.9,2094.8,63.70254]
[1625192941224,5.85894234,2095.1,2094.8,63.70254]
[1625192941225,3.65375142,2095.0,2094.8,63.70254]
[1625192942024,3.65375142,2095.0,2094.8,4.41054]
[1625192942576,40.1764,2094.9,2094.8,4.41054]
[1625192942678,3.65375142,2095.0,2094.8,4.41054]
[1625192943227,2.20527,2095.1,2094.8,4.41054]
[1625192943228,2.80907669,2094.9,2094.8,4.41054]
[1625192944079,2.80907669,2094.9,2094.8,63.02034]
[1625192944178,2.80907669,2094.9,2094.8,4.41054]
[1625192946987,2.80639517,2095.0,2094.8,4.41054]
[1625192947488,2.20527,2095.1,2094.8,4.41054]
[1625192947489,2.80646816,2094.9,2094.8,4.41054]
[1625192949195,2.80557256,2095.0,2094.8,4.41054]
[1625192952006,5.00980893,2095.1,2094.8,4.41054]
[1625192952502,45.35500893,2095.1,2094.8,4.41054]
[1625192952813,45.35500893,2095.1,2093.8,1.0]
[1625192952903,49.47500893,2095.1,2094.5,2.20527]
[1625192953005,48.47500893,2095.1,2094.5,2.20527]
[1625192953155,40.3606,2094.6,2094.5,2.20527]
[1625192953654,2.80444362,2095.0,2094.5,2.20527]
[1625192953855,45.3541396,2095.1,2094.5,2.20527]
[1625192954156,5.0089396,2095.1,2094.5,2.20527]
[1625192954256,2.20527,2095.1,2094.5,2.20527]
[1625192954916,5.00887127,2095.1,2094.8,2.20527]
[1625192955419,50.0031,2095.0,2094.8,2.20527]
[1625192956521,5.00887127,2095.1,2094.8,2.20527]
[1625192956727,2.20527,2095.1,2094.8,2.20527]
[1625192956923,2.20527,2094.9,2094.8,2.20527]
[1625192959078,47.49347,2094.9,2094.8,2.20527]
[1625192959979,5.93927,2094.9,2094.8,2.20527]
[1625192960689,5.93927,2094.9,2094.8,45.70357]
[1625192960788,2.20527,2094.9,2094.8,45.70357]
[1625192962138,2.20527,2094.9,2094.8,2.20527]
[1625192963592,2.20527,2094.9,2094.8,58.88337]
[1625192963697,2.20527,2094.9,2094.8,2.20527]
[1625192967004,2.20527,2095.1,2094.8,2.20527]
[1625192969110,2.20527,2095.1,2094.9,2.20527]
[1625192970976,3.15157,2095.1,2093.7,15.4627]
[1625192971123,2.20527,2094.2,2094.1,2.20527]
[1625192971236,5.62577,2094.2,2094.1,2.20527]
[1625192971429,52.31177,2094.2,2094.1,2.20527]
[1625192971734,5.62577,2094.2,2094.1,2.20527]
[1625192973130,7.83104,2094.2,2094.1,2.20527]
[1625192973885,7.83104,2094.2,2094.1,56.17567]
[1625192974285,3.4205,2094.2,2094.1,56.17567]
[1625192974436,1.0,2095.0,2094.1,56.17567]
[1625192974585,3.0818,2095.1,2094.1,56.17567]
[1625192975186,2.20527,2094.7,2094.5,2.20527]
[1625192975286,2.20527,2094.7,2094.5,53.16987]
[1625192976706,15.3399,2095.2,2094.5,53.16987]
[1625192976856,15.3399,2095.2,2094.5,55.88617]
[1625192977257,17.54517,2095.2,2095.1,47.80354]
[1625192977657,2.20527,2095.2,2095.1,47.80354]
[1625192982335,2.20527,2095.2,2095.1,4.41054]
[1625192984036,2.20527,2095.2,2095.1,51.86764]
[1625192984938,2.20527,2095.2,2095.1,4.41054]
[1625192986344,2.20527,2095.2,2095.1,2.20527]
[1625192988701,5.13427,2095.2,2095.1,2.20527]
[1625192988802,5.13427,2095.2,2094.8,2.20527]
[1625192989303,2.20527,2094.9,2094.8,2.20527]
[1625192991173,2.20527,2095.2,2094.8,2.20527]
[1625192991271,2.20527,2095.2,2095.1,49.3024]
[1625192991980,2.20527,2095.2,2094.8,2.20527]
[1625192992586,2.20527,2095.2,2095.1,48.8581]
[1625192993336,2.20527,2095.2,2095.1,51.06337]
[1625192995088,2.20527,2095.2,2095.1,2.20527]
[1625192995890,48.67407,2095.2,2095.1,2.20527]
[1625192995991,2.20527,2095.2,2095.1,2.20527]
[1625192999195,2.20527,2095.2,2095.1,59.78787]
[1625193000648,2.20527,2095.2,2095.1,2.20527]
[1625193002553,2.20527,2095.2,2095.1,61.68807]
[1625193002803,2.80064947,2095.7,2095.1,61.68807]
[1625193002904,4.766,2095.9,2095.1,61.68807]
[1625193003204,2.80066671,2096.0,2095.1,61.68807]
[1625193003405,2.20527,2096.0,2095.9,2.20527]
[1625193003507,2.20527,2096.0,2095.9,5.55117]
[1625193003605,2.20527,2096.0,2095.9,57.46027]
[1625193004659,2.20527,2096.0,2095.9,5.55117]
[1625193005358,4.41054,2096.0,2095.9,5.55117]
[1625193005912,4.41054,2096.0,2095.9,60.83687]
[1625193006012,4.41054,2096.0,2095.9,5.55117]
[1625193009569,18.60704344,2096.4,2095.9,5.55117]
[1625193010068,15.8072,2096.4,2095.9,5.55117]
[1625193011071,15.8072,2096.4,2095.9,51.13587]
[1625193011480,2.20527,2096.4,2096.3,2.20527]
[1625193012084,2.20527,2096.4,2096.3,55.34857]
[1625193013594,2.79949046,2096.7,2096.3,55.34857]
[1625193013795,2.79943029,2096.8,2096.3,55.34857]
[1625193014246,2.79928532,2096.9,2096.3,55.34857]
[1625193015399,17.7776551,2097.0,2096.3,55.34857]
[1625193015499,19.9829251,2097.0,2096.8,4.41054]
[1625193015902,2.20527,2097.0,2096.8,4.41054]
[1625193016203,2.20527,2097.0,2095.9,45.5847]
[1625193016301,5.94257,2097.0,2095.9,45.5847]
[1625193017353,2.20527,2097.0,2096.8,51.832]
[1625193017454,2.20527,2097.0,2096.9,2.20527]
[1625193019110,2.20527,2097.2,2096.9,5.58837]
[1625193021519,2.20527,2097.2,2097.1,2.20527]
[1625193024191,15.0247,2097.4,2097.1,2.20527]
[1625193024395,2.79664516,2097.6,2097.1,2.20527]
[1625193024845,23.33227255,2097.9,2097.1,2.20527]
[1625193024846,2.79658911,2097.7,2097.1,2.20527]
[1625193025197,2.79633655,2097.8,2097.1,2.20527]
[1625193025447,5.00160655,2097.8,2097.7,2.20527]
[1625193025548,5.00160655,2097.8,2097.7,5.37067]
[1625193025849,5.00160655,2097.8,2097.7,60.21417]
[1625193026197,2.20527,2097.8,2097.7,60.21417]
[1625193026750,2.79455327,2098.0,2097.7,60.21417]
[1625193027405,2.79416298,2098.3,2097.7,60.21417]
[1625193027500,2.79416298,2098.3,2098.2,4.41054]
[1625193027653,2.79416298,2098.3,2098.2,6.71264]
[1625193027853,2.20527,2098.5,2098.2,6.71264]
[1625193029957,2.20527,2098.5,2098.2,4.41054]
[1625193031062,2.20527,2098.5,2098.3,44.0058]
[1625193031914,2.20527,2098.7,2098.3,44.0058]
[1625193032063,4.766,2099.1,2098.3,44.0058]
[1625193032167,19.935,2099.6,2098.3,44.0058]
[1625193032274,14.8433,2099.3,2098.3,44.0058]
[1625193033516,2.20527,2099.2,2099.1,2.20527]
[1625193033816,2.20527,2099.2,2099.1,52.57497]
[1625193034918,2.20527,2099.2,2099.1,2.20527]
[1625193035518,4.41054,2099.2,2099.1,2.20527]
[1625193039247,1.0,2099.9,2099.1,2.20527]
[1625193039345,0.05,2100.0,2099.1,4.98007]
[1625193039545,0.05,2100.0,2099.9,4.41054]
[1625193039996,0.05,2100.0,2099.9,54.32104]
[1625193040398,0.05,2100.0,2099.9,4.41054]
[1625193042553,14.905,2101.5,2099.9,9.41054]
[1625193042654,14.905,2101.5,2099.9,4.41054]
[1625193042803,15.905,2101.5,2099.9,4.41054]
[1625193043007,15.905,2101.5,2100.6,56.3641]
[1625193043154,14.905,2101.5,2100.6,59.1675]
[1625193043606,14.905,2101.5,2101.4,4.41054]
[1625193044108,14.905,2101.5,2101.4,3.28400767]
[1625193044206,14.905,2101.5,2101.4,0.46771948]
[1625193045263,2.20527,2101.6,2101.4,0.46771948]
[1625193047564,57.77457,2101.6,2101.4,0.46771948]
[1625193047665,57.77457,2101.6,2101.0,2.20527]
[1625193047765,1.0,2101.5,2101.0,2.20527]
[1625193047865,4.65987,2101.6,2101.0,2.20527]
[1625193049120,45.5473,2101.4,2101.0,2.20527]
[1625193049620,4.41054,2101.1,2101.0,2.20527]
[1625193050524,7.57744,2101.1,2101.0,2.20527]
[1625193054136,7.57744,2101.1,2100.7,2.20527]
[1625193055643,2.20527,2100.8,2100.7,2.20527]
[1625193056396,2.20527,2100.8,2100.4,2.20527]
[1625193056798,2.20527,2100.8,2099.1,14.5826]
[1625193056898,1.0,2100.7,2099.1,14.5826]
[1625193057147,1.0,2100.7,2098.3,1.0]
[1625193057402,56.3119,2099.7,2098.3,1.0]
[1625193057500,60.6149,2099.7,2097.8,14.8792]
[1625193057702,2.20527,2099.6,2099.5,2.20527]
[1625193058654,2.20527,2099.6,2097.9,1.0]
[1625193058755,1.0,2099.5,2097.8,14.8792]
[1625193059663,2.20527,2099.1,2099.0,2.20527]
[1625193060458,3.303,2099.7,2099.0,2.20527]
[1625193060557,1.0,2100.5,2099.0,2.20527]
[1625193060664,47.569,2101.0,2099.0,2.20527]
[1625193060859,1.0,2100.7,2099.0,2.20527]
[1625193061661,2.20527,2099.6,2099.5,2.20527]
[1625193062466,2.20527,2099.6,2099.0,2.20527]
[1625193065725,2.20527,2099.2,2099.0,2.20527]
[1625193067746,4.41054,2099.2,2099.0,2.20527]
[1625193071203,8.06674,2099.2,2099.0,2.20527]
[1625193071355,8.06674,2099.2,2097.8,15.8792]
[1625193071459,8.06674,2099.2,2097.8,14.8792]
[1625193071757,2.20527,2098.7,2098.6,2.20527]
[1625193071906,56.64377,2098.7,2098.6,2.20527]
[1625193072606,5.23387,2098.7,2098.6,2.20527]
[1625193073559,5.23387,2098.7,2097.8,14.8792]
[1625193073759,2.20527,2098.3,2098.2,2.20527]
[1625193074408,2.20527,2098.7,2098.2,2.20527]
[1625193075716,2.20527,2098.7,2098.6,2.20527]
[1625193077821,2.20527,2098.8,2098.6,5.37387]
[1625193078373,2.20527,2098.8,2098.7,40.586]
[1625193079070,2.20527,2098.8,2098.6,5.37387]
[1625193079771,2.20527,2098.8,2098.7,2.20527]
[1625193087466,2.20527,2098.8,2098.7,5.87057]
[1625193087822,2.20527,2098.8,2098.7,8.07584]
[1625193088119,2.20527,2098.8,2098.7,66.81224]
[1625193090426,2.20527,2098.8,2098.7,8.07584]
[1625193094434,2.20527,2099.2,2098.7,8.07584]
[1625193095788,2.20527,2099.2,2099.1,2.20527]
[1625193096192,2.20527,2099.2,2098.7,2.20527]
[1625193096292,5.33997,2099.2,2098.7,2.20527]
[1625193097189,44.1021,2099.1,2098.7,2.20527]
[1625193097539,5.33997,2099.2,2098.7,2.20527]
[1625193097843,2.20527,2098.8,2098.7,2.20527]
[1625193098139,2.20527,2098.8,2098.3,2.20527]
[1625193098289,2.20527,2098.8,2097.4,15.1037]
[1625193099845,2.20527,2098.0,2097.9,2.20527]
[1625193101750,2.20527,2098.0,2096.5,1.0]
[1625193101850,2.20527,2097.6,2097.4,2.20527]
[1625193103868,4.41054,2097.6,2097.4,2.20527]
[1625193106570,4.41054,2097.6,2097.2,2.20527]
[1625193107119,4.41054,2097.6,2096.1,1.0]
[1625193107219,4.41054,2097.6,2096.0,14.974]
[1625193107677,10.35454,2097.6,2096.0,14.974]
[1625193107774,5.35454,2097.6,2096.0,14.974]
[1625193107875,2.20527,2096.6,2096.5,2.20527]
[1625193107976,5.90497,2096.6,2096.2,2.20527]
[1625193108077,5.90497,2096.6,2096.0,14.974]
[1625193108177,5.90497,2096.6,2095.0,1.0]
[1625193108276,5.90497,2096.6,2094.9,69.4674]
[1625193108377,6.90497,2096.6,2094.9,69.4674]
[1625193109930,6.90497,2096.6,2096.4,2.20527]
[1625193110080,5.90497,2096.6,2096.4,2.20527]
[1625193110381,5.90497,2096.6,2096.1,2.20527]
[1625193110630,5.90497,2096.6,2095.0,1.0]
[1625193110736,5.90497,2096.6,2094.5,2.73593743]
[1625193110839,6.90497,2096.6,2094.5,2.73593743]
[1625193111390,6.90497,2096.6,2093.9,2.7399484]
[1625193111840,6.90497,2096.6,2094.1,1.0]
[1625193111940,2.20527,2095.6,2095.5,2.20527]
[1625193112544,2.20527,2095.6,2095.3,2.20527]
[1625193113900,2.20527,2095.4,2095.3,2.20527]
[1625193116951,2.20527,2095.6,2095.3,2.20527]
[1625193117051,0.9493,2097.1,2095.3,4.51157]
[1625193117207,1.9493,2097.1,2095.3,4.51157]
[1625193117304,1.0,2096.9,2095.3,4.51157]
[1625193117454,19.7854,2097.5,2095.3,4.51157]
[1625193117604,19.7854,2097.5,2095.3,63.33687]
[1625193117954,2.20527,2096.1,2096.0,2.20527]
[1625193118256,2.20527,2096.1,2095.8,2.20527]
[1625193118706,5.33827,2096.1,2095.8,2.20527]
[1625193118809,5.33827,2096.1,2094.5,1.0]
[1625193118909,1.0,2096.0,2094.4,15.0695]
[1625193119959,2.20527,2095.3,2095.2,2.20527]
[1625193120963,1.0,2096.0,2095.2,2.20527]
[1625193121072,46.5331,2096.7,2095.2,5.23497]
[1625193121166,47.5331,2096.7,2095.2,5.23497]
[1625193121263,14.3631,2097.0,2095.2,5.23497]
[1625193121264,16.6141,2096.6,2095.2,5.23497]
[1625193122066,2.20527,2096.0,2095.8,2.20527]
[1625193122317,2.20527,2096.0,2095.2,5.23497]
[1625193124036,2.20527,2096.0,2095.9,2.20527]
[1625193127386,2.20527,2096.0,2095.9,4.56537]
[1625193127490,1.0,2096.6,2095.9,4.56537]
[1625193127587,14.3631,2097.0,2095.9,4.56537]
[1625193127991,2.20527,2096.5,2096.3,2.20527]
[1625193130049,4.41054,2096.5,2096.3,2.20527]
[1625193130249,14.3631,2097.0,2096.3,2.20527]
[1625193130654,1.0,2097.3,2096.3,2.20527]
[1625193130752,15.3244,2098.3,2096.3,2.20527]
[1625193130853,1.0,2098.1,2096.3,2.20527]
[1625193131604,1.0,2098.1,2096.8,53.8989]
[1625193131708,30.2447,2098.3,2096.8,57.384]
[1625193132010,30.2447,2098.3,2097.4,2.20527]
[1625193132107,2.20527,2097.6,2097.4,5.31637]
[1625193134966,2.20527,2097.6,2097.4,3.1111]
[1625193135066,2.20527,2097.6,2097.2,2.20527]
[1625193136129,2.20527,2097.6,2097.5,2.20527]
[1625193137483,2.20527,2097.6,2097.2,2.20527]
[1625193138083,2.20527,2097.6,2097.2,4.41054]
[1625193140086,2.20527,2097.3,2097.2,4.41054]
[1625193140286,2.20527,2097.6,2097.2,4.41054]
[1625193140388,2.20527,2097.6,2097.2,7.53714]
[1625193140855,2.14337,2097.6,2097.2,7.53714]
[1625193141001,1.84447,2097.6,2097.2,7.53714]
[1625193141204,1.84447,2097.6,2097.5,50.4556]
[1625193141310,16.4843,2098.8,2097.5,50.4556]
[1625193141412,15.4843,2098.8,2097.5,50.4556]
[1625193141506,15.1833,2099.5,2097.5,67.6856]
[1625193141805,1.0,2099.4,2097.5,67.6856]
[1625193142154,2.20527,2098.1,2098.0,2.20527]
[1625193142304,2.20527,2098.1,2098.0,5.28877]
[1625193144158,4.41054,2098.1,2098.0,5.28877]
[1625193145215,4.41054,2098.1,2098.0,2.20527]
[1625193146918,2.7021,2098.3,2098.0,2.20527]
[1625193148170,2.20527,2098.1,2098.0,2.20527]
[1625193150137,2.20527,2098.3,2098.0,2.20527]
[1625193150237,2.20527,2098.3,2098.2,2.20527]
[1625193152740,2.20527,2098.3,2098.0,2.20527]
[1625193152842,5.19447,2098.3,2098.0,2.20527]
[1625193153442,5.19447,2098.3,2097.3,15.8369]
[1625193153691,5.19447,2098.3,2096.6,42.0616]
[1625193153793,6.19447,2098.3,2096.6,42.0616]
[1625193154244,2.20527,2097.9,2097.8,2.20527]
[1625193175114,2.20527,2098.3,2097.8,2.20527]
[1625193175268,2.20527,2098.3,2098.1,49.9176]
[1625193176464,2.20527,2098.3,2098.2,2.20527]
[1625193178425,2.20527,2098.6,2098.2,2.20527]
[1625193180431,2.20527,2098.6,2098.5,2.20527]
[1625193184098,2.20527,2098.9,2098.5,2.20527]
[1625193184398,2.20527,2098.9,2098.8,2.20527]
[1625193189536,2.20527,2098.9,2098.8,5.87697]
[1625193190035,2.20527,2098.9,2098.8,61.97787]
[1625193190385,2.20527,2098.9,2098.8,5.87697]
[1625193192253,2.20527,2099.1,2098.8,5.87697]
[1625193192554,2.20527,2099.1,2099.0,2.20527]
[1625193194106,2.20527,2099.1,2097.9,1.0]
[1625193194204,5.72067,2099.1,2097.4,1.0]
[1625193194307,1.0,2099.0,2097.3,14.6579]
[1625193194556,2.20527,2098.5,2098.4,2.20527]
[1625193197863,2.20527,2098.7,2098.4,2.20527]
[1625193198563,4.41054,2098.7,2098.4,2.20527]
[1625193206691,4.41054,2098.7,2098.4,4.41054]
[1625193210506,1.0,2099.2,2098.4,4.41054]
[1625193210609,14.6702,2099.3,2098.4,4.41054]
[1625193210707,14.6702,2099.3,2099.2,2.20527]
[1625193210810,14.6702,2099.3,2099.2,5.27527]
[1625193210909,2.20527,2099.4,2099.2,5.27527]
[1625193212664,4.41054,2099.4,2099.2,5.27527]
[1625193214024,5.8093862,2099.4,2099.2,5.27527]
[1625193214122,5.8093862,2099.4,2099.2,2.20527]
[1625193214270,58.0092,2099.3,2099.2,2.20527]
[1625193214471,59.40810788,2099.3,2099.2,2.20527]
[1625193215473,59.96909393,2099.3,2099.2,2.20527]
[1625193216585,60.80917582,2099.3,2099.2,2.20527]
[1625193217389,59.96916014,2099.3,2099.2,2.20527]
[1625193217490,1.95996014,2099.3,2099.2,2.20527]
[1625193218202,7.21048305,2099.4,2099.2,2.20527]
[1625193218692,1.9611274,2099.3,2099.2,2.20527]
[1625193219962,7.21048305,2099.4,2099.2,2.20527]
[1625193220061,2.80360655,2099.3,2099.2,2.20527]
[1625193220410,4.41054,2099.4,2099.2,2.20527]
[1625193220511,8.05525271,2099.4,2099.2,2.20527]
[1625193221614,57.1846,2099.3,2099.2,2.20527]
[1625193221713,59.655,2099.3,2099.2,2.20527]
[1625193223014,59.655,2099.3,2098.2,46.2586]
[1625193223417,1.4021418,2098.9,2098.2,46.2586]
[1625193223818,1.4021418,2098.9,2097.6,64.014]
[1625193223969,1.4021418,2098.9,2097.3,1.88380258]
[1625193224369,1.4021418,2098.9,2097.8,0.14093303]
[1625193224473,41.2096,2098.6,2097.8,0.14093303]
[1625193224569,44.0036,2098.6,2097.8,0.14093303]
[1625193224820,2.20527,2098.4,2098.2,2.20527]
[1625193227826,3.60878985,2098.4,2098.2,2.20527]
[1625193228128,1.40364912,2098.3,2098.2,2.20527]
[1625193228679,1.96514219,2098.3,2098.2,2.20527]
[1625193229079,1.40361575,2098.3,2098.2,2.20527]
[1625193230483,1.96546896,2098.3,2098.2,2.20527]
[1625193232738,5.01308279,2098.4,2098.2,2.20527]
[1625193233189,1.9653416,2098.3,2098.2,2.20527]
[1625193235594,1.40360355,2098.3,2098.2,2.20527]
[1625193235995,3.60878287,2098.4,2098.2,2.20527]
[1625193236444,1.40351287,2098.4,2098.2,2.20527]
[1625193237155,1.40350689,2098.5,2098.2,2.20527]
[1625193237455,1.40350689,2098.5,2098.4,40.7729]
[1625193237564,1.40341774,2098.6,2098.4,43.1801]
[1625193237916,1.40327938,2098.7,2098.4,43.1801]
[1625193238015,1.40327938,2098.7,2098.4,2.4072]
[1625193238970,1.40334381,2098.8,2098.6,2.20527]
[1625193239474,1.40335856,2098.7,2098.6,2.20527]
[1625193240269,1.40332745,2098.8,2098.6,2.20527]
[1625193240967,1.40332745,2098.8,2098.7,2.20527]
[1625193241321,1.96465486,2098.8,2098.7,2.20527]
[1625193241621,2.8069086,2098.8,2098.7,2.20527]
[1625193242972,5.0121786,2098.8,2098.7,2.20527]
[1625193243071,5.0121786,2098.8,2098.7,5.34237]
[1625193243373,3.60862659,2098.8,2098.7,5.34237]
[1625193243623,3.60862659,2098.8,2098.7,60.05677]
[1625193243724,1.40335659,2098.8,2098.7,60.05677]
[1625193243824,1.40328113,2098.9,2098.7,60.05677]
[1625193244224,1.4032056,2099.0,2098.7,60.05677]
[1625193245026,1.4032056,2099.0,2098.9,2.20527]
[1625193245726,1.96458075,2099.0,2098.9,2.20527]
[1625193247145,2.80660673,2099.0,2098.9,2.20527]
[1625193248247,55.77839269,2099.0,2098.9,2.20527]
[1625193248649,56.62044088,2099.0,2098.9,2.20527]
[1625193250456,53.8137,2099.0,2098.9,2.20527]
[1625193251469,5.85471381,2099.1,2098.9,2.20527]
[1625193253724,1.96536075,2099.0,2098.9,2.20527]
[1625193254777,2.80774968,2099.0,2098.9,2.20527]
[1625193256729,2.20527,2099.1,2098.9,2.20527]
[1625193257279,5.85594264,2099.1,2098.9,2.20527]
[1625193258131,3.65136801,2099.0,2097.8,1.0]
[1625193258230,3.65136801,2099.0,2097.5,16.41196174]
[1625193258333,1.0,2098.9,2097.5,16.41196174]
[1625193258482,1.0,2098.9,2097.6,0.14095414]
[1625193258584,3.37092946,2098.5,2097.6,0.14095414]
[1625193258685,6.58112946,2098.5,2097.6,0.14095414]
[1625193258989,45.4283,2098.3,2097.6,0.14095414]
[1625193259084,47.63357,2098.3,2098.2,2.20527]
[1625193259187,2.20527,2098.3,2098.2,2.20527]
[1625193261795,5.57759887,2098.3,2098.2,2.20527]
[1625193262397,5.57759887,2098.3,2098.0,2.20527]
[1625193263950,8.38813833,2098.3,2098.0,2.20527]
[1625193267709,5.57759887,2098.3,2098.0,2.20527]
[1625193268209,2.20527,2098.3,2098.0,2.20527]
[1625193269627,2.20527,2098.3,2098.0,4.47437]
[1625193270677,3.61036353,2098.3,2098.0,4.47437]
[1625193270780,5.57749447,2098.3,2098.0,4.47437]
[1625193274333,2.20527,2098.3,2098.0,4.47437]
[1625193274786,5.57736675,2098.3,2098.0,4.47437]
[1625193275186,5.57736675,2098.3,2098.2,2.20527]
[1625193277087,2.20527,2098.3,2098.2,2.20527]
[1625193283963,3.37167022,2098.5,2098.2,2.20527]
[1625193284067,6.18240888,2098.6,2098.2,2.20527]
[1625193284826,6.18240888,2098.6,2098.3,0.14091781]
[1625193284978,6.18240888,2098.6,2098.5,57.3851]
[1625193285075,6.18240888,2098.6,2098.5,59.6492]
[1625193285226,3.37152958,2099.0,2098.5,59.6492]
[1625193285375,3.37152958,2099.0,2098.9,4.41054]
[1625193285476,5.57617936,2099.1,2098.9,4.41054]
[1625193286228,5.57617936,2099.1,2098.9,49.46044]
[1625193286731,2.20527,2099.1,2098.9,49.46044]
[1625193287279,2.20527,2099.1,2098.9,4.41054]
[1625193287830,5.5757232,2099.1,2098.9,4.41054]
[1625193288583,8.38450116,2099.1,2098.9,4.41054]
[1625193288981,5.5757232,2099.1,2098.9,4.41054]
[1625193289833,8.38426126,2099.1,2098.9,4.41054]
[1625193290336,5.5757232,2099.1,2098.9,4.41054]
[1625193291338,5.5757232,2099.1,2098.9,52.81544]
[1625193291640,5.5757232,2099.1,2098.9,4.41054]
[1625193292643,8.9719232,2099.1,2098.9,4.41054]
[1625193292896,3.36981758,2099.0,2098.9,4.41054]
[1625193293347,2.20527,2099.1,2098.9,4.41054]
[1625193293348,5.57506258,2099.1,2098.9,4.41054]
[1625193295506,3.36949995,2099.0,2098.9,4.41054]
[1625193297421,1.40395831,2099.0,2098.9,4.41054]
[1625193297714,3.36939736,2099.0,2098.9,4.41054]
[1625193298161,55.13025442,2099.0,2098.9,4.41054]
[1625193298514,52.3223,2099.0,2098.9,4.41054]
[1625193298713,55.13013022,2099.0,2098.9,4.41054]
[1625193298813,2.80783022,2099.0,2098.9,4.41054]
[1625193299166,3.36917476,2099.0,2098.9,4.41054]
[1625193300767,1.96535194,2099.0,2098.9,4.41054]
[1625193301267,3.36914398,2099.0,2098.9,4.41054]
[1625193302625,3.36914398,2099.0,2097.8,17.85000573]
[1625193302724,3.36914398,2099.0,2097.8,16.85000573]
[1625193303128,3.36914398,2099.0,2097.9,0.14094101]
[1625193303226,3.36914398,2099.0,2097.9,58.04024101]
[1625193303328,3.6093071,2098.6,2098.4,2.20527]